﻿Department Family,Entity,Date,Expense Type,Expense Area,Supplier,Amount in Sterling
Companies House,CH,06/10/2021,Adjudicator General           ,Edinburgh                     ,WALKER LOVE                             ,"£3,392.04"
Companies House,CH,22/10/2021,Belfast Maintenance           ,Northern Ireland              ,GOVERNMENT PROPERTY AGENCY (Montagu Evans),"£1,680.60"
Companies House,CH,12/10/2021,Car parking contract          ,Northern Ireland              ,CBRE NI LIMITED                         ,"£1,005.00"
Companies House,CH,12/10/2021,Car parking contract          ,Northern Ireland              ,CBRE NI LIMITED                         ,"£1,050.00"
Companies House,CH,22/10/2021,CE Misc Additions TY          ,Infrastructure                ,TRAMS LIMITED                           ,"£9,994.86"
Companies House,CH,07/10/2021,CE Misc Additions TY          ,Infrastructure                ,Microsoft Limited                       ,"£72,802.80"
Companies House,CH,07/10/2021,Circuit Rental                ,Infrastructure                ,HIGHSPEED OFFICE LTD                    ,"£7,471.65"
Companies House,CH,14/10/2021,Circuit Rental                ,Infrastructure                ,HIGHSPEED OFFICE LTD                    ,"£18,939.00"
Companies House,CH,22/10/2021,Cleaning Contract             ,Building Services             ,GOVERNMENT PROPERTY AGENCY (Montagu Evans),"£37,437.34"
Companies House,CH,22/10/2021,Cleaning Contract             ,Building Services             ,GOVERNMENT PROPERTY AGENCY (Montagu Evans),"£37,437.34"
Companies House,CH,22/10/2021,Cleaning Contract             ,Edinburgh                     ,GOVERNMENT PROPERTY AGENCY (Montagu Evans),£843.51
Companies House,CH,22/10/2021,Cleaning Contract             ,Edinburgh                     ,GOVERNMENT PROPERTY AGENCY (Montagu Evans),£843.51
Companies House,CH,22/10/2021,Cleaning Contract             ,London Information Centre     ,GOVERNMENT PROPERTY AGENCY (Montagu Evans),"£1,456.89"
Companies House,CH,22/10/2021,Cleaning Contract             ,Northern Ireland              ,GOVERNMENT PROPERTY AGENCY (Montagu Evans),£617.09
Companies House,CH,22/10/2021,Cleaning Contract             ,Northern Ireland              ,GOVERNMENT PROPERTY AGENCY (Montagu Evans),£617.09
Companies House,CH,12/10/2021,Cloud Services                ,Infrastructure                ,INSIGHT DIRECT (UK) LTD                 ,"£2,545.43"
Companies House,CH,22/10/2021,Cloud Services                ,Infrastructure Engineering    ,Amazon Web Services                     ,"-£25,442.45"
Companies House,CH,22/10/2021,Cloud Services                ,Infrastructure Engineering    ,Amazon Web Services                     ,"-£25,317.27"
Companies House,CH,22/10/2021,Cloud Services                ,Infrastructure Engineering    ,Amazon Web Services                     ,"-£24,401.43"
Companies House,CH,22/10/2021,Cloud Services                ,Infrastructure Engineering    ,Amazon Web Services                     ,"-£21,655.87"
Companies House,CH,22/10/2021,Cloud Services                ,Infrastructure Engineering    ,Amazon Web Services                     ,"-£19,092.75"
Companies House,CH,22/10/2021,Cloud Services                ,Infrastructure Engineering    ,Amazon Web Services                     ,"-£17,590.08"
Companies House,CH,22/10/2021,Cloud Services                ,Infrastructure Engineering    ,Amazon Web Services                     ,"-£12,779.14"
Companies House,CH,22/10/2021,Cloud Services                ,Infrastructure Engineering    ,Amazon Web Services                     ,"-£5,363.31"
Companies House,CH,22/10/2021,Cloud Services                ,Infrastructure Engineering    ,Amazon Web Services                     ,"-£4,306.30"
Companies House,CH,22/10/2021,Cloud Services                ,Infrastructure Engineering    ,Amazon Web Services                     ,"-£4,053.32"
Companies House,CH,22/10/2021,Cloud Services                ,Infrastructure Engineering    ,Amazon Web Services                     ,"-£3,684.33"
Companies House,CH,22/10/2021,Cloud Services                ,Infrastructure Engineering    ,Amazon Web Services                     ,"-£2,652.84"
Companies House,CH,22/10/2021,Cloud Services                ,Infrastructure Engineering    ,Amazon Web Services                     ,"-£2,553.66"
Companies House,CH,22/10/2021,Cloud Services                ,Infrastructure Engineering    ,Amazon Web Services                     ,"-£2,541.31"
Companies House,CH,22/10/2021,Cloud Services                ,Infrastructure Engineering    ,Amazon Web Services                     ,"-£2,539.12"
Companies House,CH,22/10/2021,Cloud Services                ,Infrastructure Engineering    ,Amazon Web Services                     ,"-£2,381.68"
Companies House,CH,22/10/2021,Cloud Services                ,Infrastructure Engineering    ,Amazon Web Services                     ,"-£2,121.84"
Companies House,CH,22/10/2021,Cloud Services                ,Infrastructure Engineering    ,Amazon Web Services                     ,"-£1,851.91"
Companies House,CH,22/10/2021,Cloud Services                ,Infrastructure Engineering    ,Amazon Web Services                     ,"-£1,800.24"
Companies House,CH,22/10/2021,Cloud Services                ,Infrastructure Engineering    ,Amazon Web Services                     ,-£656.92
Companies House,CH,22/10/2021,Cloud Services                ,Infrastructure Engineering    ,Amazon Web Services                     ,-£648.54
Companies House,CH,22/10/2021,Cloud Services                ,Infrastructure Engineering    ,Amazon Web Services                     ,-£547.90
Companies House,CH,22/10/2021,Cloud Services                ,Infrastructure Engineering    ,Amazon Web Services                     ,£511.88
Companies House,CH,22/10/2021,Cloud Services                ,Infrastructure Engineering    ,Amazon Web Services                     ,£614.83
Companies House,CH,22/10/2021,Cloud Services                ,Infrastructure Engineering    ,Amazon Web Services                     ,"£2,857.66"
Companies House,CH,22/10/2021,Cloud Services                ,Infrastructure Engineering    ,Amazon Web Services                     ,"£3,008.29"
Companies House,CH,22/10/2021,Cloud Services                ,Infrastructure Engineering    ,Amazon Web Services                     ,"£3,693.21"
Companies House,CH,22/10/2021,Cloud Services                ,Infrastructure Engineering    ,Amazon Web Services                     ,"£14,106.16"
Companies House,CH,22/10/2021,Cloud Services                ,Infrastructure Engineering    ,Amazon Web Services                     ,"£14,118.40"
Companies House,CH,22/10/2021,Cloud Services                ,Infrastructure Engineering    ,Amazon Web Services                     ,"£14,186.96"
Companies House,CH,22/10/2021,Cloud Services                ,Infrastructure Engineering    ,Amazon Web Services                     ,"£15,478.38"
Companies House,CH,22/10/2021,Cloud Services                ,Infrastructure Engineering    ,Amazon Web Services                     ,"£135,563.96"
Companies House,CH,22/10/2021,Cloud Services                ,Infrastructure Engineering    ,Amazon Web Services                     ,"£140,651.71"
Companies House,CH,22/10/2021,Cloud Services                ,Infrastructure Engineering    ,Amazon Web Services                     ,"£141,347.08"
Companies House,CH,06/10/2021,Consultants Computer          ,Accounting                    ,Advanced Business Solutions             ,"£2,210.00"
Companies House,CH,06/10/2021,Consultants Computer          ,Accounting                    ,Advanced Business Solutions             ,"£5,100.00"
Companies House,CH,04/10/2021,Consultants Computer          ,Late Filing Penalties Accounting                ,INDESSER                                ,"£4,800.00"
Companies House,CH,28/10/2021,Contact Centre                ,CDD Cardiff                   ,Serco Limited                           ,"£168,513.22"
Companies House,CH,28/10/2021,Contract Staff         ,Accounting                    ,Hays Specialist Recruitment Ltd         ,£693.48
Companies House,CH,28/10/2021,Contract Staff         ,Accounting                    ,Hays Specialist Recruitment Ltd         ,£693.48
Companies House,CH,06/10/2021,Contract Staff         ,ACI - Data Science            ,Hays Specialist Recruitment Ltd         ,"£2,228.06"
Companies House,CH,11/10/2021,Contract Staff         ,ACI - Data Science            ,Hays Specialist Recruitment Ltd         ,"£2,785.08"
Companies House,CH,12/10/2021,Contract Staff         ,ACI - Data Science            ,Hays Specialist Recruitment Ltd         ,"£2,785.08"
Companies House,CH,21/10/2021,Contract Staff         ,ACI - Data Science            ,Hays Specialist Recruitment Ltd         ,"£2,785.08"
Companies House,CH,28/10/2021,Contract Staff         ,ACI - Data Science            ,Hays Specialist Recruitment Ltd         ,"£2,785.08"
Companies House,CH,25/10/2021,Contract Staff         ,Building Services             ,MICHAEL PAGE INTERNATIONAL RECRUITMENT  ,"£1,353.00"
Companies House,CH,25/10/2021,Contract Staff         ,Building Services             ,MICHAEL PAGE INTERNATIONAL RECRUITMENT  ,"£2,029.50"
Companies House,CH,11/10/2021,Contract Staff         ,Building Services             ,MICHAEL PAGE INTERNATIONAL RECRUITMENT  ,"£2,045.15"
Companies House,CH,28/10/2021,Contract Staff         ,Building Services             ,MICHAEL PAGE INTERNATIONAL RECRUITMENT  ,"£2,045.15"
Companies House,CH,25/10/2021,Contract Staff         ,Building Services             ,MICHAEL PAGE INTERNATIONAL RECRUITMENT  ,"£2,454.18"
Companies House,CH,06/10/2021,Contract Staff         ,Building Services             ,MICHAEL PAGE INTERNATIONAL RECRUITMENT  ,"£4,499.33"
Companies House,CH,25/10/2021,Contract Staff         ,Infrastructure                ,ALEXANDER MANN SOLUTIONS                ,"£2,278.99"
Companies House,CH,11/10/2021,Contract Staff         ,Infrastructure                ,ALEXANDER MANN SOLUTIONS                ,"£2,848.74"
Companies House,CH,06/10/2021,Contract Staff         ,Infrastructure                ,Spring Technology Staffing Services Ltd ,"£3,411.60"
Companies House,CH,14/10/2021,Contract Staff         ,Infrastructure                ,Spring Technology Staffing Services Ltd ,"£4,264.50"
Companies House,CH,28/10/2021,Contract Staff         ,Infrastructure                ,Spring Technology Staffing Services Ltd ,"£4,264.50"
Companies House,CH,11/10/2021,Contract Staff         ,Infrastructure Engineering    ,Spring Technology Staffing Services Ltd ,"£2,702.40"
Companies House,CH,11/10/2021,Contract Staff         ,Infrastructure Engineering    ,Spring Technology Staffing Services Ltd ,"£3,378.00"
Companies House,CH,11/10/2021,Contract Staff         ,Procurement                   ,MICHAEL PAGE INTERNATIONAL RECRUITMENT  ,"£2,972.50"
Companies House,CH,25/10/2021,Contract Staff         ,Procurement                   ,MICHAEL PAGE INTERNATIONAL RECRUITMENT  ,"£2,972.50"
Companies House,CH,28/10/2021,Contract Staff         ,Procurement                   ,MICHAEL PAGE INTERNATIONAL RECRUITMENT  ,"£2,972.50"
Companies House,CH,11/10/2021,Contract Staff         ,Procurement                   ,MICHAEL PAGE INTERNATIONAL RECRUITMENT  ,"£3,585.00"
Companies House,CH,28/10/2021,Contract Staff         ,Procurement                   ,MICHAEL PAGE INTERNATIONAL RECRUITMENT  ,"£3,585.00"
Companies House,CH,28/10/2021,Contract Staff         ,Procurement                   ,MICHAEL PAGE INTERNATIONAL RECRUITMENT  ,"£3,585.00"
Companies House,CH,06/10/2021,Contract Staff         ,Procurement                   ,Hays Specialist Recruitment Ltd         ,"£3,945.18"
Companies House,CH,12/10/2021,Contract Staff         ,Procurement                   ,Hays Specialist Recruitment Ltd         ,"£3,945.18"
Companies House,CH,28/10/2021,Contract Staff         ,Procurement                   ,Hays Specialist Recruitment Ltd         ,"£3,945.18"
Companies House,CH,11/10/2021,Contract Staff         ,Procurement                   ,MICHAEL PAGE INTERNATIONAL RECRUITMENT  ,"£10,106.50"
Companies House,CH,07/10/2021,Contract Staff         ,Procurement                   ,MICHAEL PAGE INTERNATIONAL RECRUITMENT  ,"£10,755.00"
Companies House,CH,06/10/2021,Contract Staff         ,Projects                        ,Hays Specialist Recruitment Ltd         ,"£2,824.38"
Companies House,CH,28/10/2021,Contract Staff         ,Projects                        ,Hays Specialist Recruitment Ltd         ,"£2,824.38"
Companies House,CH,28/10/2021,Contract Staff         ,Projects                        ,Hays Specialist Recruitment Ltd         ,"£2,824.38"
Companies House,CH,06/10/2021,Contract Staff         ,Projects                        ,Hays Specialist Recruitment Ltd         ,"£3,271.86"
Companies House,CH,22/10/2021,Contract Staff         ,Projects                        ,Hays Specialist Recruitment Ltd         ,"£3,271.86"
Companies House,CH,25/10/2021,Contract Staff         ,Projects                        ,Hays Specialist Recruitment Ltd         ,"£3,271.86"
Companies House,CH,22/10/2021,Contract Staff         ,"Strategy, Policy & Communications      ",Hays Specialist Recruitment Ltd         ,"£1,091.40"
Companies House,CH,07/10/2021,Contract Staff         ,"Strategy, Policy & Communications      ",Hays Specialist Recruitment Ltd         ,"£1,368.85"
Companies House,CH,28/10/2021,Contract Staff         ,"Strategy, Policy & Communications      ",Hays Specialist Recruitment Ltd         ,"£1,368.86"
Companies House,CH,28/10/2021,Contract Staff         ,"Strategy, Policy & Communications      ",Spring Technology Staffing Services Ltd ,"£3,964.50"
Companies House,CH,04/10/2021,Contract Staff         ,WebOps & DevOps               ,ALEXANDER MANN SOLUTIONS                ,"£2,930.88"
Companies House,CH,11/10/2021,Contract Staff         ,WebOps & DevOps               ,ALEXANDER MANN SOLUTIONS                ,"£2,930.88"
Companies House,CH,25/10/2021,Contract Staff         ,WebOps & DevOps               ,ALEXANDER MANN SOLUTIONS                ,"£2,930.88"
Companies House,CH,28/10/2021,Contract Staff         ,WebOps & DevOps               ,ALEXANDER MANN SOLUTIONS                ,"£2,930.88"
Companies House,CH,22/10/2021,Edinburgh Maintenance         ,Edinburgh                     ,GOVERNMENT PROPERTY AGENCY (Montagu Evans),"£1,040.91"
Companies House,CH,22/10/2021,Edinburgh Maintenance         ,Edinburgh                     ,GOVERNMENT PROPERTY AGENCY (Montagu Evans),"£1,040.91"
Companies House,CH,07/10/2021,Electricity                   ,Building Services             ,EDF ENERGY CUSTOMERS PLC                ,"£44,698.99"
Companies House,CH,11/10/2021,Electricity                   ,Edinburgh                     ,EDF ENERGY CUSTOMERS PLC                ,£781.56
Companies House,CH,11/10/2021,Electricity                   ,Northern Ireland              ,Power NI                                ,"£2,622.22"
Companies House,CH,21/10/2021,Environmental costs           ,Building Services             ,SANTIA ASBESTOS MANAGEMENT LTD          ,"£5,250.00"
Companies House,CH,14/10/2021,External Managed Services,Portfolio                     ,AMIDO LTD                               ,"£36,700.00"
Companies House,CH,25/10/2021,External managed services     ,Architecture & Design         ,FDM GROUP                               ,"£55,592.00"
Companies House,CH,25/10/2021,External managed services     ,Architecture & Design         ,FDM GROUP                               ,"£57,288.00"
Companies House,CH,25/10/2021,External managed services     ,Architecture & Design         ,FDM GROUP                               ,"£69,180.00"
Companies House,CH,25/10/2021,External managed services     ,Architecture & Design         ,FDM GROUP                               ,"£70,860.00"
Companies House,CH,14/10/2021,External managed services     ,DDaT Projects                 ,KAINOS SOFTWARE LTD                     ,"£93,904.50"
Companies House,CH,11/10/2021,External managed services     ,DDaT Projects                 ,KAINOS SOFTWARE LTD                     ,"£191,268.83"
Companies House,CH,21/10/2021,Fire Protection               ,Building Services             ,SANTIA ASBESTOS MANAGEMENT LTD          ,£800.00
Companies House,CH,04/10/2021,Fire Protection               ,Building Services             ,AFT CORPORATE FACILITIES LTD            ,"£3,010.00"
Companies House,CH,12/10/2021,Gazette Notices               ,CDD Cardiff                   ,Stationery Office (Williams Lea)        ,"£8,888.53"
Companies House,CH,12/10/2021,Gazette Notices               ,CDD Cardiff                   ,Stationery Office (Williams Lea)        ,"£8,888.53"
Companies House,CH,21/10/2021,Government Legal              ,CDD Cardiff                   ,GOVERNMENT LEGAL DEPARTMENT             ,"£82,830.60"
Companies House,CH,06/10/2021,Government Legal              ,CDD Cardiff                   ,GOVERNMENT LEGAL DEPARTMENT             ,"£86,920.44"
Companies House,CH,11/10/2021,H & S Equipment               ,Building Services             ,Evac Chair International Limited        ,£750.00
Companies House,CH,15/10/2021,Hardware & Software Maintenance ,DDaT Projects                 ,TIBCO SOFTWARE (IRELAND) LTD            ,"£180,688.48"
Companies House,CH,04/10/2021,Hardware & Software Maintenance ,HR Strategy & Policy          ,MHR                                     ,"£4,108.58"
Companies House,CH,07/10/2021,Hardware & Software Maintenance ,Infrastructure                ,Microsoft Limited                       ,£706.70
Companies House,CH,14/10/2021,Hardware & Software Maintenance ,Infrastructure                ,Konica Minolta Business Solutions (wales,"£1,657.02"
Companies House,CH,11/10/2021,Hardware & Software Maintenance ,Infrastructure                ,CADSPEC LTD                             ,"£8,970.00"
Companies House,CH,12/10/2021,Legal Disbursements           ,Late Filing Penalties Edinburgh                 ,ALSTON LAW LTD                          ,£940.00
Companies House,CH,22/10/2021,London Maintenance            ,London Information Centre     ,GOVERNMENT PROPERTY AGENCY (Montagu Evans),"£1,667.04"
Companies House,CH,22/10/2021,Maintenance Contract          ,Building Services             ,GOVERNMENT PROPERTY AGENCY (Montagu Evans),"£58,822.04"
Companies House,CH,22/10/2021,Maintenance Contract          ,Building Services             ,GOVERNMENT PROPERTY AGENCY (Montagu Evans),"£60,017.35"
Companies House,CH,07/10/2021,Telephone Costs,Infrastructure                ,TELEFONICA UK LTD                       ,"£3,281.88"
Companies House,CH,11/10/2021,Telephone Costs,Infrastructure                ,TELEFONICA UK LTD                       ,"£3,308.18"
Companies House,CH,04/10/2021,Occupational Health Contract  ,Building Services             ,PEOPLE ASSET MANAGEMENT GROUP LTD       ,£628.00
Companies House,CH,06/10/2021,Occupational Health Contract  ,Building Services             ,PEOPLE ASSET MANAGEMENT GROUP LTD       ,£628.00
Companies House,CH,07/10/2021,Occupational Health Contract  ,Building Services             ,PEOPLE ASSET MANAGEMENT GROUP LTD       ,"£1,520.00"
Companies House,CH,11/10/2021,Occupational Health Contract  ,Building Services             ,PEOPLE ASSET MANAGEMENT GROUP LTD       ,"£2,593.70"
Companies House,CH,07/10/2021,Occupational Health Contract  ,Building Services             ,PEOPLE ASSET MANAGEMENT GROUP LTD       ,"£3,265.20"
Companies House,CH,04/10/2021,Occupational Health Contract  ,HR Strategy & Policy          ,PEOPLE ASSET MANAGEMENT GROUP LTD       ,£806.00
Companies House,CH,25/10/2021,Occupational Health Contract  ,HR Strategy & Policy          ,PEOPLE ASSET MANAGEMENT GROUP LTD       ,£942.00
Companies House,CH,06/10/2021,Occupational Health Contract  ,HR Strategy & Policy          ,PEOPLE ASSET MANAGEMENT GROUP LTD       ,"£2,280.00"
Companies House,CH,28/10/2021,Occupational Health Contract  ,HR Strategy & Policy          ,PEOPLE ASSET MANAGEMENT GROUP LTD       ,"£2,948.35"
Companies House,CH,04/10/2021,Postage,CDD Cardiff                   ,Royal Mail                              ,"£3,074.82"
Companies House,CH,11/10/2021,Postage,CDD Cardiff                   ,Royal Mail                              ,"£4,467.04"
Companies House,CH,21/10/2021,Postage,CDD Cardiff                   ,Royal Mail                              ,"£4,733.68"
Companies House,CH,14/10/2021,Postage,Edinburgh                     ,Royal Mail                              ,£906.54
Companies House,CH,06/10/2021,Postage,Edinburgh                     ,Royal Mail                              ,£973.32
Companies House,CH,07/10/2021,Postage  ,Edinburgh                     ,DX Network Services Limited             ,£900.00
Companies House,CH,14/10/2021,Postage   ,CDD Cardiff                   ,APOLLO DISTRIBUTION SOLUTIONS LTD       ,"£3,094.00"
Companies House,CH,11/10/2021,Print and Mailing Contract    ,CDD Cardiff                   ,APS GROUP                               ,"£2,295.68"
Companies House,CH,21/10/2021,Print and Mailing Contract    ,CDD Cardiff                   ,APS GROUP                               ,"£24,891.54"
Companies House,CH,11/10/2021,Print and Mailing Contract    ,CDD Cardiff                   ,APS GROUP                               ,"£41,254.15"
Companies House,CH,11/10/2021,Print and Mailing Contract    ,CDD Cardiff                   ,APS GROUP                               ,"£43,115.61"
Companies House,CH,21/10/2021,Professional Fees             ,Cyber Security                ,ALCUMUS ISOQAR LTD                      ,"£1,778.00"
Companies House,CH,15/10/2021,Professional Fees             ,DDaT Projects                 ,TIBCO SOFTWARE (IRELAND) LTD            ,"£2,528.00"
Companies House,CH,04/10/2021,Professional Fees             ,Infrastructure                ,Computacenter (GCAT)                    ,"£3,566.40"
Companies House,CH,07/10/2021,Professional Fees             ,Infrastructure Engineering    ,EDM Group Ltd                           ,"£1,445.00"
Companies House,CH,14/10/2021,Professional Fees             ,Portfolio                     ,AMIDO LTD                               ,"£27,263.00"
Companies House,CH,15/10/2021,Professional Fees             ,WebOps & DevOps               ,TIBCO SOFTWARE (IRELAND) LTD            ,"£2,528.00"
Companies House,CH,15/10/2021,RATES                         ,Building Services             ,City and County of Cardiff              ,"£63,308.00"
Companies House,CH,15/10/2021,RATES                         ,London Information Centre     ,CITY OF WESTMINSTER                     ,"£1,934.00"
Companies House,CH,15/10/2021,RATES                         ,London Information Centre     ,CITY OF WESTMINSTER                     ,"£2,944.00"
Companies House,CH,14/10/2021,Recruitment Expenses          ,HR Service delivery           ,LINKEDIN IRELAND UNLIMITED COMPANY      ,"£5,130.00"
Companies House,CH,14/10/2021,Recruitment Expenses          ,HR Service delivery           ,Cabinet Office                          ,"£8,590.00"
Companies House,CH,04/10/2021,Rent                          ,London Information Centre     ,Jon Christopher Chartered Surveyors     ,"£12,296.25"
Companies House,CH,28/10/2021,Rent                          ,London Information Centre     ,Jon Christopher Chartered Surveyors     ,"£19,541.25"
Companies House,CH,12/10/2021,Rent                          ,Northern Ireland              ,CBRE NI LIMITED                         ,"£34,749.00"
Companies House,CH,11/10/2021,Repayments-Lease Liability CL ,Organisational Overheads      ,GOVERNMENT PROPERTY AGENCY (Montagu Evans),"£568,484.75"
Companies House,CH,07/10/2021,Restaurant Services           ,Building Services             ,THE VENDING PEOPLE                      ,"£1,087.86"
Companies House,CH,11/10/2021,Restaurant Services           ,Building Services             ,ARAMARK                                 ,"£15,942.19"
Companies House,CH,25/10/2021,Rolling Maintenance & minor contracts,Building Services             ,Sealability Limited                     ,£960.00
Companies House,CH,07/10/2021,Rolling Maintenance & minor contracts,Building Services             ,BEN DANIEL                              ,"£3,230.00"
Companies House,CH,04/10/2021,Rolling Maintenance & minor contracts,Building Services             ,AFT CORPORATE FACILITIES LTD            ,"£5,452.80"
Companies House,CH,22/10/2021,Security                      ,Building Services             ,GOVERNMENT PROPERTY AGENCY (Montagu Evans),"£35,932.01"
Companies House,CH,22/10/2021,Security                      ,Building Services             ,GOVERNMENT PROPERTY AGENCY (Montagu Evans),"£35,932.01"
Companies House,CH,22/10/2021,Security                      ,London Information Centre     ,GOVERNMENT PROPERTY AGENCY (Montagu Evans),"£8,222.05"
Companies House,CH,04/10/2021,Service charges               ,London Information Centre     ,Jon Christopher Chartered Surveyors     ,"£3,961.96"
Companies House,CH,28/10/2021,Service charges               ,London Information Centre     ,Jon Christopher Chartered Surveyors     ,"£5,927.89"
Companies House,CH,12/10/2021,Service charges               ,Northern Ireland              ,CBRE NI LIMITED                         ,"£6,646.42"
Companies House,CH,06/10/2021,Software as a service         ,Cyber Security                ,E2E ASSURE                              ,"£19,935.00"
Companies House,CH,04/10/2021,Software as a service         ,Infrastructure                ,AVOIRA LTD                              ,"£2,450.00"
Companies House,CH,07/10/2021,Software Licence              ,HR Strategy & Policy          ,WEALTH WIZARDS BENEFITS LTD             ,"£5,000.00"
Companies House,CH,12/10/2021,Software Licence              ,Infrastructure                ,INSIGHT DIRECT (UK) LTD                 ,-£558.08
Companies House,CH,14/10/2021,Stationery & Consumables      ,Procurement                   ,Banner                                  ,"£1,131.00"
Companies House,CH,14/10/2021,Stationery & Consumables      ,Procurement                   ,Banner                                  ,"£3,813.36"
Companies House,CH,21/10/2021,Subscriptions                 ,CDD Cardiff                   ,CCMA VENTURES LIMITED                   ,£749.00
Companies House,CH,07/10/2021,Telecom Maintenance           ,Infrastructure                ,TIGER COMMUNICATIONS PLC                ,"£6,480.00"
Companies House,CH,14/10/2021,Telecom Maintenance           ,Infrastructure                ,MAINTEL EUROPE LTD                      ,"£9,824.40"
Companies House,CH,22/10/2021,TFM Management fees           ,Building Services             ,GOVERNMENT PROPERTY AGENCY (Montagu Evans),"£13,132.40"
Companies House,CH,22/10/2021,TFM Management fees           ,Building Services             ,GOVERNMENT PROPERTY AGENCY (Montagu Evans),"£13,132.40"
Companies House,CH,22/10/2021,TFM Management fees           ,Edinburgh                     ,GOVERNMENT PROPERTY AGENCY (Montagu Evans),£839.54
Companies House,CH,22/10/2021,TFM Management fees           ,Edinburgh                     ,GOVERNMENT PROPERTY AGENCY (Montagu Evans),£839.54
Companies House,CH,22/10/2021,TFM Management fees           ,London Information Centre     ,GOVERNMENT PROPERTY AGENCY (Montagu Evans),"£1,269.02"
Companies House,CH,22/10/2021,TFM Management fees           ,Northern Ireland              ,GOVERNMENT PROPERTY AGENCY (Montagu Evans),£833.48
Companies House,CH,22/10/2021,TFM Management fees           ,Northern Ireland              ,GOVERNMENT PROPERTY AGENCY (Montagu Evans),£833.48
Companies House,CH,12/10/2021,Training Digital              ,Training                      ,RSS (SERVICES) LTD                      ,"£2,241.00"
Companies House,CH,28/10/2021,Training External             ,Portfolio                     ,BITESIZE COMPUTER TRAINING LTD          ,"£1,250.00"
Companies House,CH,12/10/2021,Training External             ,Portfolio                     ,BITESIZE COMPUTER TRAINING LTD          ,"£2,500.00"
Companies House,CH,22/10/2021,Training External             ,Training                      ,3 MINUTE MILE LIMITED                   ,£640.00
Companies House,CH,11/10/2021,Training External             ,Training                      ,University of South Wales               ,"£1,500.00"
Companies House,CH,04/10/2021,Training External             ,Training                      , MyCSP Ltd (Equinity Group)             ,"£2,500.00"
Companies House,CH,14/10/2021,Training External             ,Training                      ,SCARLET DESIGN INTERNATIONAL LIMITED    ,"£3,625.00"
Companies House,CH,12/10/2021,Training Internal             ,Accounting                    ,INTELLECTUAL PROPERTY OFFICE            ,£685.68
Companies House,CH,22/10/2021,Training People Transformation,HR Strategy & Policy          ,GOVERNMENT LEGAL DEPARTMENT             ,£681.36
Companies House,CH,21/10/2021,Training People Transformation,Training                      ,ADVOCACY SUPPORT CYMRU                  ,£580.00
Companies House,CH,21/10/2021,Training Policy/Communications         ,Training                      ,CSL-KPMG LLP                            ,"£2,112.00"
Companies House,CH,04/10/2021,User Acceptance Testing       ,Portfolio                     ,THE DIGITAL ACCESSIBILITY CENTRE LTD    ,"£3,375.00"
Companies House,CH,11/10/2021,Water                         ,Building Services             ,Dwr Cymru Welsh Water                   ,"£1,298.56"
Companies House,CH,15/10/2021,Water                         ,Edinburgh                     ,BUSINESS STREAM LIMITED                 ,"£4,863.87"
